Workbook

Sheet Introduction
B1: Ce calculateur des coûts de production du biodiesel contient 4 feuilles de calcul Certains champs peuvent être remplis par l’utilisateur. Il comporte 8 colonnes et 250 lignes.
B2: Lignes directrices pour estimer
B3: les coûts de production du biodiesel de canola — carburant agricole
B4: ="basé sur "&Input!D14&" 000 litres d'huile végétale usagée" -> basé sur 15 000 litres d'huile végétale usagée
B12: Ce guide vous offre des renseignements en matière de planification et un format pour calculer les coûts de production pour une production de biodiesel à la ferme en fonction du coût de la culture du canola dans votre exploitation agricole. Les coûts de renonciation relatifs aux prix potentiels du marché pour le canola ne sont pas inclus. Des rajustements sont nécessaires lorsque vous appliquez ces chiffres à votre propre entreprise.
B14: Les prévisions budgétaires sont basées sur un certain nombre d’hypothèses qui sont clairement définies dans les pages secondaires. Les coûts des intrants sont basés sur les renseignements fournis par l’industrie. Une gestion adéquate des installations dans le processus de production et la conformité avec l’ensemble des exigences environnementales et en matière de sécurité qui s’appliquent sont présumées. La plupart des fabricants d’équipement d’origine exigent que le biodiesel respecte la norme de qualité pour les carburants ASTM D6751.
B16: Avis de non-responsabilité : Ce budget n’est qu’un guide et ne constitue pas une étude approfondie du coût de production de l’industrie du diesel. L’interprétation et l’utilisation de ces renseignements sont la responsabilité de l’utilisateur. Si vous avez besoin d’aide pour élaboration du budget individuel pour votre exploitation, communiquez avec le Centre d’information agricole au 1 877 424-1300.
B19: Adapté pour l’Ontario par Kevin McKague et Richard Brunke
B20: Ingénieristes, MAAARO
B21: courrie : kevin.mckague@ontario.ca
B22: version du 14 octobre 2014
B26: Fin de la feuille de calcul

Sheet Input
B1: Ce calculateur des coûts de production du biodiesel contient 4 feuilles de calcul. Certains champs peuvent être remplis par l’utilisateur. Il comporte 8 colonnes et 250 lignes.
B2: Coûts de production du biodiesel — intrants
B4: Hypothèses
B6: 1. Ce budget décrit le coût de production pour une exploitation de biodiesel.
B7: 2. Les bâtiments et l’équipement sont évalués au nouveau coût.
B8: 3. Toute la matière première est évaluée au prix du marché.
B9: 4. Le coût de la matière première (huile végétale usagée) ne comprend pas les coûts de transport
B10: vers l’installation.
B11: 5. Tout le biodiesel produit est destiné uniquement à être utilisé à la ferme.
B13: Production de l’installation de biodiesel | D13: Variables des intrants | E13: Unités | F13: Commentaires
B14: Taille de l’installation — milliers de litres | D14: 15
B15: Jours par année | D15: 65
B16: Heures d’exploitation par jour | D16: 8
B17: Employés par quart de travail — production de biodiesel | D17: 0.25
B18: Taux de main-d’œuvre | D18: 20 | E18: / heure
B20: Huile végétale nécessaire par litre de biodiesel | D20: 1.05 | E20: litres
B21: Méthanol | D21: 6950 | E21: / tonne
B22: Récupération du méthanol | D22: 25 | E22: %
B23: Catalyseur — hydroxyde de potassium | D23: 12350 | E23: / tonne
B24: Augmentation du pourcentage du catalyseur requis pour les AGL | D24: 100 | E24: %
B26: Glycérol | D26: 180 | E26: / tonne
B27: Diesel (coloré) carburant agricole — DTUFS | D27: 1.2 | E27: / litre
B28: Usage du mélange de biodiesel agricole | D28: 100 | E28: %
B29: Augmentation de l’efficacité du carburant agricole avec l’utilisation du biodiesel | D29: 1.5 | E29: %
B31: Approvisionnement en huile végétale usagée
B32: Coût de l’huile végétale usagée | D32: 500 | E32: / tonne
B33: Taille moyen du chargement par ramassage d’huile | D33: 2200 | E33: litres
B34: Distance moyenne par ramassage d’huile | D34: 200 | E34: kilomètres
B35: Coût du camionnage — 1 tonne par remorque | D35: 0.5 | E35: / km
B36: Taux de main-d’œuvre | D36: 20 | E36: / heure
B37: Densité apparente de l’huile usagée | D37: 0.915 | E37: kg / L
B39: Autres coûts d’exploitation
B40: Hydro | D40: 0.15 | E40: / kWh
B41: Entretien | D41: 2.5 | E41: %
B42: Élimination des déchets/eaux usées | D42: 0.15 | E42: / L
B43: Déclaration de la taxe sur les carburants de l’Ontario (0,143/L si le produit est utilisé dans des véhicules titulaires de permis) | D43: 0 | E43: / L
B44: Administration diverse (p. ex., inscription auprès du ministère des Finances de l’Ontario) | D44: 0 | E44: / an
B45: Assurance | D45: 0.5 | E45: %
B46: Impôt foncier | D46: 0.5 | E46: %
B47: Taux d’investissement | D47: 2.5 | E47: %
B48: Taux du droit d'exploitation | D48: 4 | E48: %
B50: Coûts des immobilisations
B51: Bâtiments | C51: Valeur initiale | E51: Valeur de récupération | F51: Durée économique
B52: Installation de biodiesel | C52: 3000 | E52: 0.1 | F52: 20 | G52: ans
B53: Traitement de l’huile usée | C53: 2500 | E53: 0.1 | F53: 20 | G53: ans
B54: Total | C54: =SUM(C52:C53) -> 5500 | E54: =AVERAGE(E52:E53) -> 0.1 | F54: =AVERAGE(F52:F53) -> 20 | G54: ans
B56: Machinerie et équipement
B57: Installation de biodiesel | C57: 3000 | E57: 0.1 | F57: 10 | G57: ans
B58: Filtration de l’huile usée | C58: 2500 | E58: 0.1 | F58: 10 | G58: ans
B59: Total | C59: =SUM(C57:C58) -> 5500 | E59: =AVERAGE(E57:E58) -> 0.1 | F59: =AVERAGE(F57:F58) -> 10 | G59: ans
B61: Total bâtiments, machinerie et équipement | C61: =C54+C59 -> 11000
B63: Valeur totale des terrains | C63: 10000
B65: Total des investissements en immobilisations | C65: =C61+C63 -> 21000
B69: Fin de la feuille de calcul

Sheet Summary
B1: Ce calculateur des coûts de production du biodiesel contient 4 feuilles de calcul. Certains champs peuvent être remplis par l’utilisateur. Il comporte 8 colonnes et 250 lignes.
B2: =" Coûts de production du biodiesel — carburant agricole" -> Coûts de production du biodiesel — carburant agricole | D2: =TODAY() -> 2023-04-14
B3: ="Basés sur "&Input!D14&" 000 litres d'huile végérale usagée" -> Basés sur 15 000 litres d'huile végérale usagée
B6: A. Coûts d’exploitation | C6: Coût/litre | D6: Coût total | E6: Votre coût réel
B7: 1. Coûts des intrants
B8: 1.01 Matière première — huile végétale usagée | C8: =SUM(D8/(Input!D14*1000)) -> 0.5270416667 | D8: =Details!G40 -> 7905.625
B9: 1.02 Méthanol | C9: =SUM(D9/(Input!D14*1000)) -> 1.101740063 | D9: =Details!G50 -> 16526.10094
B10: 1.03 Catalyseur | C10: =SUM(D10/(Input!D14*1000)) -> 0.3846718103 | D10: =Details!G62 -> 5770.077154
B11: Sous-total du coût des intrants | C11: =C8+C9+C10 -> 2.013453539 | D11: =SUM(D8:D10) -> 30201.80309
B13: 2. Autres coûts d’exploitation
B14: 2.01 Hydro | C14: =SUM(D14/(Input!D14*1000)) -> 0.0099 | D14: =Details!G69 -> 148.5
B15: 2.02 Entretien | C15: =SUM(D15/(Input!D14*1000)) -> 0.01833333333 | D15: =Details!G76 -> 275
B16: 2.03 Élimination des déchets/eaux usées | C16: =SUM(D16/(Input!D14*1000)) -> 0.15 | D16: =Details!G79 -> 2250
B17: 2.04 Déclaration de la taxe sur les carburants de l’Ontario | C17: =SUM(D17/(Input!D14*1000)) -> 0 | D17: =Details!G80 -> 0
B18: 2.05 Frais d’administration divers | C18: =SUM(D18/(Input!D14*1000)) -> 0 | D18: =Details!G81 -> 0
B19: 2.06 Assurance | C19: =SUM(D19/(Input!D14*1000)) -> 0.003666666667 | D19: =Details!G88 -> 55
B20: 2.07 Impôt foncier | C20: =SUM(D20/(Input!D14*1000)) -> 0.005166666667 | D20: =Details!G95 -> 77.5
B21: Sous-total des coûts d’exploitation | C21: =SUM(C14:C20) -> 0.1870666667 | D21: =SUM(D14:D20) -> 2806
B22: 2.08 Droit d’exploitation | C22: =SUM(D22/(Input!D14*1000)) -> 0.003733333333 | D22: =ROUND(Details!G103,0) -> 56
B23: Total des coûts d’exploitation | C23: =C21+C22+C11 -> 2.204253539 | D23: =SUM(D21:D22)+D11 -> 33063.80309
B25: 3. Dépréciation
B26: 3.01 Bâtiments | C26: =SUM(D26/(Input!D14*1000)) -> 0.0165 | D26: =Details!G132 -> 247.5
B27: 3.02 Machinerie et équipement | C27: =SUM(D27/(Input!D14*1000)) -> 0.033 | D27: =Details!G138 -> 495
B29: 4. Investissements
B30: 4.01 Bâtiments | C30: =SUM(D30/(Input!D14*1000)) -> 0.005041666667 | D30: =Details!G147 -> 75.625
B31: 4.02 Machinerie et équipement | C31: =SUM(D31/(Input!D14*1000)) -> 0.005041666667 | D31: =Details!G154 -> 75.625
B32: 4.03 Terrains | C32: =SUM(D32/(Input!D14*1000)) -> 0.01666666667 | D32: =Details!G159 -> 250
B33: Total des coûts fixes | C33: =SUM(C26:C32) -> 0.07625 | D33: =SUM(D26:D32) -> 1143.75
B34: Total des coûts d’exploitation et des coûts fixes | C34: =C23+C33 -> 2.280503539 | D34: =D23+D33 -> 34207.55309
B36: C. Main-d’œuvre | C36: =SUM(D36/(Input!D14*1000)) -> 0.2127407407 | D36: =Details!G176 -> 3191.111111
B37: Total du coût de production | C37: =C34+C36 -> 2.49324428 | D37: =D36+D34 -> 37398.6642
B39: D. Valeur
B40: 5. Biodiesel
B41: 5.01 Valeur estimée du biodiesel agricole | C41: =SUM(D41/(Input!D14*1000)) -> 1.2 | D41: =Details!G183 -> 18000
B42: 5.02 Valeur estimée de l’efficacité accrue du carburant | C42: =SUM(D42/(Input!D14*1000)) -> 0.01827411168 | D42: =Details!G198 -> 274.1116751
B43: 5.03 Ventes de glycérol | C43: =SUM(D43/(Input!D14*1000)) -> 0.016845912 | D43: =Details!G203 -> 252.68868
B44: Valeur totale | C44: =C41+C42+C43 -> 1.235120024 | D44: =D41+D42+D43 -> 18526.80036
B46: Valeur totale — coût de production | C46: =C44-C37 -> -1.258124256 | D46: =D44-D37 -> -18871.86385
B48: Prix limite | C48: $/Litre
B49: A. Coûts d’exploitation | C49: =SUM((D23-(D44-D41))/(Input!D14*1000)) -> 2.169133516
B50: B. Coûts d’exploitation et de la main-d’œuvre | C50: =SUM(((D23+D36)-(D44-D41))/(Input!D14*1000)) -> 2.381874256
B51: C. Coûts d’exploitation et coûts fixes | C51: =SUM((D34-(D44-D41))/(Input!D14*1000)) -> 2.245383516
B52: D. Coûts d’exploitation, fixes et de la main-d’œuvre | C52: =SUM(((D34+D36)-(D44-D41))/(Input!D14*1000)) -> 2.458124256
B55: ="Prix limite $/litre = (coût - (valeur totale – valeur estimée du biodiesel agricole)) ÷ "&Input!D14&"000 litres" -> Prix limite $/litre = (coût - (valeur totale – valeur estimée du biodiesel agricole)) ÷ 15000 litres
B61: Avis de non-responsabilité : Ce budget n’est qu’un guide et ne constitue pas une étude approfondie du coût de production de
B62: cette industrie. L’interprétation et l’utilisation de ces renseignements sont la responsabilité de l’utilisateur. Aucune responsabilité
B63: n’est assumée pour des décisions fondées sur l’interprétation et l’utilisation des renseignements de la présente publication.

Sheet Details
B1: Ce calculateur des coûts de production du biodiesel contient 4 feuilles de calcul. Certains champs peuvent être remplis par l’utilisateur. Il comporte 8 colonnes et 250 lignes.
B2: Feuille de calcul sur la production de biodiesel
B5: Hypothèses
B6: 1. Ce budget décrit le coût de production pour une exploitation de biodiesel.
B7: 2. Les bâtiments et l’équipement sont évalués au nouveau coût.
B8: 3. Tout le soya utilisé comme matière première est évalué au coût de production.
B9: 4. Le coût de la matière première (huile végétale) inclut la valeur marchande du tourteau de soya produit.
B10: 5. Tout le biodiesel produit est destiné uniquement à être utilisé à la ferme..
B14: A. Coûts d’exploitation
C15: 1. Coûts des intrants | I15: Vos valeurs
D16: 1.01 Matière première — huile végétale usagée
G17: =SUM(1000*Input!D14) -> 15000 | H17: Capacité de l’installation de biodiesel — litres
F18: x | G18: =Input!D20 -> 1.05 | H18: huile nécessaire par litre de biodiesel
F19: = | G19: =SUM(G17*G18) -> 15750 | H19: Litres d’huile végétale nécessaires
F20: x | G20: =Input!D37 -> 0.915 | H20: densité apparente de l’huile végétale usagée kg/L
F21: ÷ | G21: 1000 | H21: kg par tonne
F22: = | G22: =SUM(G19*G20)/G21 -> 14.41125 | H22: Tonnes d’huile végétale usagée
G24: =G22 -> 14.41125 | H24: Tonnes d’huile végétale
F25: x | G25: =Input!D32 -> 500 | H25: Huile végétale usagée par tonne
F26: = | G26: =SUM(G24*G25) -> 7205.625 | H26: Coût de l’huile végétale usagée
G28: =Input!D33 -> 2200 | H28: Taille moyen en litres du chargement par ramassage
G30: =G19 -> 15750 | H30: Litres d’huile végétale nécessaires
F31: ÷ | G31: =G28 -> 2200 | H31: Taille du chargement en litres par ramassage
F32: = | G32: =ROUND(G30/G31,0) -> 7 | H32: Nombre total de chargements
F33: x | G33: =Input!D34 -> 200 | H33: Moyenne de km par ramassage
F34: = | G34: =SUM(G32*G33) -> 1400 | H34: Nombre de km
F35: x | G35: =Input!D35 -> 0.5 | H35: Coût du camionnage par km
F36: = | G36: =SUM(G34*G35) -> 700 | H36: Coûts du camionnage
G38: =G26 -> 7205.625 | H38: =H26 -> Coût de l’huile végétale usagée
F39: - | G39: =G36 -> 700 | H39: =H36 -> Coûts du camionnage
E40: Total | F40: = | G40: =SUM(G38+G39) -> 7905.625 | H40: Coût net de la matière première
D42: 1.02 Méthanol
G43: =SUM(1000*Input!D14) -> 15000 | H43: Capacité de l’installation de biodiesel — litres
F44: x | G44: =Input!D20 -> 1.05 | H44: huile nécessaire par litre de biodiesel
F45: x | G45: =Input!D37 -> 0.915 | H45: densité apparente de l’huile usagée kg/L
F46: x | G46: 0.22 | H46: Méthanol nécessaire
F47: x | G47: =(Input!D22/100) -> 0.25 | H47: Récupération du méthanol
F48: ÷ | G48: 1000 | H48: kg par tonne
F49: x | G49: =Input!D21 -> 6950 | H49: Méthanol par tonne
E50: Total | F50: = | G50: =(G43*G44*G45*G46*(1-G47)*G49)/G48 -> 16526.10094 | H50: Méthanol
D52: 1.03 Catalyseur
G53: =SUM(1000*Input!D14) -> 15000 | H53: Capacité de l’installation de biodiesel — litress
F54: x | G54: =Input!D20 -> 1.05 | H54: huile nécessaire par litre de biodiesel
F55: x | G55: =Input!D37 -> 0.915 | H55: Densité apparente de l’huile usagée kg/L
F56: ÷ | G56: 1000 | H56: kg par tonne
F57: x | G57: 16.21 | H57: kg d’hydroxyde de potassium/tonne
F58: + | G58: =G57*(Input!D24/100) -> 16.21 | H58: Catalyseur supplémentaire pour rajuster les AGL (kg/T)
F59: = | G59: =G57+G58 -> 32.42 | H59: Total des kg d’hydroxyde de potassium/tonne
F60: ÷ | G60: 1000 | H60: kg par tonne
F61: x | G61: =Input!D23 -> 12350 | H61: Catalyseur par tonne
E62: Total | F62: = | G62: =SUM(G53*G54*G55/G56*G59/G60*G61) -> 5770.077154 | H62: Catalyseur
C64: 2. Autres coûts d’exploitation
D65: 2.01 Hydro
G66: =Input!D14*1000 -> 15000 | H66: Capacité de l’installation de biodiesel — litres
F67: x | G67: 0.066 | H67: kWhr par litre
F68: x | G68: =Input!D40 -> 0.15 | H68: Tarif hydro — kWhr
E69: Total | F69: = | G69: =SUM((G66*G67*G68)) -> 148.5 | H69: Hydro - biodiesel
D71: 2.02 Entretien
G72: =Input!C54 -> 5500 | H72: coûts des immobilisations — bâtiments
F73: + | G73: =Input!C59 -> 5500 | H73: coût des immobilisations — équipement
F74: = | G74: =SUM(G72:G73) -> 11000 | H74: Total bâtiments et équipement
F75: x | G75: =Input!D41/100 -> 0.025 | H75: Taux d’entretien
F76: = | G76: =SUM(G74*G75) -> 275 | H76: Total entretien
D78: 2.03 - 2.05 Frais d’administration divers
G79: =Input!D14*1000*Input!D42 -> 2250 | H79: Élimination des déchets/eaux usées
G80: =Input!D14*1000 * Input!D43 -> 0 | H80: Déclaration de la taxe sur les carburants de l’Ontario
G81: =Input!D44 -> 0 | H81: Frais d’administration divers
D83: 2.06 Assurance
G84: =Input!C54 -> 5500 | H84: coûts des immobilisations — bâtiments
F85: + | G85: =Input!C59 -> 5500 | H85: coût des immobilisations — équipement
F86: = | G86: =SUM(G84:G85) -> 11000 | H86: Total bâtiments et équipement
F87: x | G87: =Input!D45/100 -> 0.005 | H87: Taux d’assurance
F88: = | G88: =SUM(G86*G87) -> 55 | H88: Total assurance
D90: 2.07 Impôt foncier
G91: =Input!C54 -> 5500 | H91: coûts des immobilisations — bâtiments
F92: + | G92: =Input!C63 -> 10000 | H92: coûts des immobilisations — terrains
F93: = | G93: =SUM(G91:G92) -> 15500 | H93: Total bâtiments et terrains
F94: x | G94: =Input!D46/100 -> 0.005 | H94: Taux d’impôt foncier
F95: = | G95: =SUM(G93*G94) -> 77.5 | H95: Total impôt foncier
D97: 2.08 Droit d’exploitation
D98: (Le droit d’exploitation est perçu sur la moitié du sous-total des coûts d’exploitation)
G100: =Summary!D21 -> 2806 | H100: sous-total des coûts d’exploitation
F101: ÷ | G101: 2 | H101: moyenne
F102: x | G102: =Input!D48 -> 4 | H102: % taux du droit d’exploitation
F103: = | G103: =ROUND((G100/G101)*(G102),2)/100 -> 56.12 | H103: Droit d'exploitation
G105: Coûts des immobilisations
C107: Bâtiments
C108: Installation de biodiesel | H108: =Input!C52 -> 3000
C109: Installation d’huile usée | H109: =Input!C53 -> 2500
C110: Coût total des bâtiments | H110: =SUM(H108:H109) -> 5500
C112: Machinerie et équipement
C113: Installation de biodiesel | H113: =Input!C57 -> 3000
C114: Filtration de l’huile usée | H114: =Input!C58 -> 2500
C115: Coût total de la machinerie et de l’équipement | H115: =SUM(H113:H114) -> 5500
C117: Total bâtiments, machinerie et équipement | H117: =H110+H115 -> 11000
C119: Valeur totale des terrains | H119: =Input!C63 -> 10000
C121: Total des investissements en immobilisations | H121: =H117+H119 -> 21000
B124: B. Coûts fixes
C125: 3. Dépréciation | G125: Coût historique — valeur de récupération
G126: Durée économique
D128: 3.01 Bâtiments
G129: =Input!C54 -> 5500 | H129: coût historique
F130: - | G130: =(Input!E54)*Input!C54 -> 550 | H130: valeur de récupération
F131: ÷ | G131: =Input!F54 -> 20 | H131: années de durée économique
F132: = | G132: =((G129-G130)/G131) -> 247.5
D134: 3.02 Machinerie et équipement
G135: =Input!C59 -> 5500 | H135: coût historique
F136: - | G136: =(Input!E59)*Input!C59 -> 550 | H136: valeur de récupération
F137: ÷ | G137: =Input!F59 -> 10 | H137: années de durée économique
F138: = | G138: =((G135-G136)/G137) -> 495
C140: 4. Investissements | G140: Coût historique + valeur de récupération x taux d’investissement
H141: 2
D142: 4.01 Bâtiments
G143: =G129 -> 5500 | H143: coût historique
F144: + | G144: =G130 -> 550 | H144: valeur de récupération
F145: ÷ | G145: 2 | H145: moyenne
F146: x | G146: =Input!D47 -> 2.5 | H146: % taux d’investissement
F147: = | G147: =(((G143+G144)/G145)*(G146/100)) -> 75.625
D149: 4.02 Machinery & Equipment
G150: =G135 -> 5500 | H150: coût historique
F151: + | G151: =G136 -> 550 | H151: valeur de récupération
F152: ÷ | G152: 2 | H152: moyenne
F153: x | G153: =Input!D47 -> 2.5 | H153: % taux d’investissement
F154: = | G154: =(((G150+G151)/G152)*(G153/100)) -> 75.625
D156: 4.03 Terrains
G157: =Input!C63 -> 10000 | H157: terrains
F158: x | G158: =Input!D47 -> 2.5 | H158: % taux d’investissement
F159: = | G159: =SUM(G157*(G158/100)) -> 250
B161: C. Main-d’œuvre
D162: Huile végétale usagée
F163: x | G163: =G32 -> 7 | H163: Nombre total de chargements
F164: x | G164: =SUM(G33/90)+2 -> 4.222222222 | H164: Heures par chargement
F165: x | G165: =Input!D36 -> 20 | H165: Taux de main-d’œuvre par heure
E166: Total | F166: = | G166: =SUM(G163*G164*G165) -> 591.1111111 | H166: Coût de la main-d’œuvre pour l’huile végétale usagée
G167: =SUM(G163*G164)/(40*48) -> 0.01539351852 | H167: Emplois à temps plein
D168: Biodiesel
G169: =Input!D17 -> 0.25 | H169: Employés par quart de travail
F170: x | G170: =Input!D15 -> 65 | H170: Jours par année
F171: x | G171: =Input!D16 -> 8 | H171: Heures d’exploitation par jour
F172: x | G172: =Input!D18 -> 20 | H172: Taux de main-d’œuvre par heure
E173: Total | F173: = | G173: =SUM(G169*G170*G171*G172) -> 2600 | H173: Coût de la main-d’œuvre pour le biodiesel
G174: =SUM((Input!D15*Input!D16)*Input!D17)/(40*48) -> 0.06770833333 | H174: Emplois à temps plein
D176: Total | F176: = | G176: =G173+G166 -> 3191.111111 | H176: Main-d’œuvre
D177: Total | F177: = | G177: =SUM(G174+G167) -> 0.08310185185 | H177: Emplois à temps plein
C179: 5. Valeur
D180: 5.01 Valeur estimée du biodiesel agricole
G181: =Input!D27 -> 1.2 | H181: Diesel (coloré) carburant agricole — #1 DTUFS
F182: x | G182: =SUM(1000*Input!D14) -> 15000 | H182: Capacité de l’installation de biodiesel — litres
E183: Total | F183: = | G183: =G182*G181 -> 18000 | H183: Valeur du biodiesel
D185: 5.02 Valeur estimée de l’efficacité accrue du carburant
G186: =SUM(1*(1-(Input!D29/100)))*(1*(1-(Input!D28/100))) -> 0 | H186: ="Carburant diesel utilisé — portion du mélange B"&Input!D27 -> Carburant diesel utilisé — portion du mélange B1,2
F187: x | G187: =Input!D27 -> 1.2 | H187: Diesel (coloré) carburant agricole — #1 DTUFS
F188: = | G188: =SUM(G186*G187) -> 0 | H188: ="Valeur du carburant diesel — portion du mélange B"&Input!D28&"" -> Valeur du carburant diesel — portion du mélange B100
G190: =Input!D27 -> 1.2 | H190: Diesel (coloré) carburant agricole — #1 DTUFS
F191: - | G191: =G188 -> 0 | H191: =H188 -> Valeur du carburant diesel — portion du mélange B100
F192: = | G192: =SUM(G190-G191) -> 1.2 | H192: ="Valeur du carburant biodiesel — portion du mélange B"&Input!D28&"" -> Valeur du carburant biodiesel — portion du mélange B100
F193: ÷ | G193: =SUM(1*(1-(Input!D29/100)))*(1*((Input!D28/100))) -> 0.985 | H193: ="Carburant biodiesel utilisé — portion du mélange B"&Input!D28&"" -> Carburant biodiesel utilisé — portion du mélange B100
G194: =SUM(G192/G193) -> 1.218274112 | H194: Total de la valeur relative du biodiesel
F195: - | G195: =Input!D27 -> 1.2 | H195: Diesel (coloré) carburant agricole — #1 DTUFS
F196: = | G196: =SUM(G194-G195) -> 0.01827411168 | H196: Solde — valeur relative du biodiesel
F197: x | G197: =SUM(1000*Input!D14) -> 15000 | H197: Capacité de l’installation de biodiesel — litres
E198: Total | F198: = | G198: =G197*G196 -> 274.1116751 | H198: Valeur accrue de l’efficacité du carburant
D200: 5.03 Ventes de glycérol
G201: =SUM((Input!D14*1000)*0.0935884)/1000 -> 1.403826 | H201: Tonnes de glycérol produites
F202: x | G202: =Input!D26 -> 180 | H202: glycérol par tonne
E203: Total | F203: = | G203: =G202*G201 -> 252.68868 | H203: Glycérol
B205: Pour de plus amples renseignements, communiquez avec :
B208: Préparé par : | H208: Adapté pour l’Ontario par :
B210: Roy Arnott,agronome | H210: Kevin McKague, ingénieur.
B211: Spécialiste en gestion d’exploitation agricole | H211: Ministère de l’Agriculture, de l’Alimentation et des Affaires rurales de l’Ontario
B212: Agricultrure, Alimentation et Initiatives rurales Manitoba | H212: Woodstock, ON 519 835-6078
B213: Killarney GO Centre 204 523-6424 | H213: courriel : kevin.mckague@ontario.ca
B216: Fin de la feuille de calcul
